lending/lending_fUSD_20250917
["ID","MTS","AMOUNT","RATE_DAILY","PERIOD"]
[385910605,1758131465059,-195.187877,0.00024658,7]
[385910606,1758131465070,-1000.0,0.00024658,2]
[385910607,1758131465079,-1000.0,0.00024658,2]
[385910608,1758131465090,-195.187877,0.00024658,7]
[385910609,1758131465101,-1000.0,0.00024658,2]
[385910610,1758131465111,-195.187877,0.00024658,7]
[385910611,1758131465121,-1000.0,0.00024658,2]
[385910612,1758131465130,-195.187877,0.00024658,7]
[385910613,1758131465140,-1000.0,0.00024658,2]
[385910614,1758131465149,-1000.0,0.00024658,2]
[385910615,1758131465159,-1000.0,0.00024658,2]
[385910616,1758131465170,-1000.0,0.00024658,2]
[385910617,1758131465180,-195.187881,0.00024658,7]
[385910618,1758131465189,-151.0,0.00024658,7]
[385910619,1758131465199,-151.0,0.00024658,7]
[385910620,1758131465208,-151.0,0.00024658,7]
[385910621,1758131465218,-151.0,0.00024658,7]
[385910622,1758131465228,-151.0,0.00024658,7]
[385910623,1758131465237,-151.0,0.00024658,7]
[385910624,1758131465247,-151.0,0.00024658,7]
[385910625,1758131465256,-151.0,0.00024658,7]
[385910626,1758131465267,-151.0,0.00024658,7]
[385910627,1758131465278,-221.213753,0.00024658,7]
[385910628,1758131465288,-151.0,0.00024658,7]
[385910629,1758131465298,-151.0,0.00024658,7]
[385910630,1758131465308,-151.0,0.00024658,7]
[385910631,1758131465318,-151.0,0.00024658,7]
[385910632,1758131465328,-151.0,0.00024658,7]
[385910633,1758131465339,-151.0,0.00024658,7]
[385910634,1758131465349,-264.539596,0.00024658,7]
[385910635,1758131465359,-151.0,0.00024658,7]
[385910636,1758131465369,-151.0,0.00024658,7]
[385910637,1758131465378,-157.347925,0.00024658,7]
[385910638,1758131465389,-1000.0,0.00024658,2]
[385910639,1758131465399,-156.420548,0.00024658,7]
[385910640,1758131465409,-151.0,0.00024658,7]
[385910641,1758131465419,-1000.0,0.00024658,2]
[385910642,1758131465428,-1000.0,0.00024658,2]
[385910643,1758131465438,-1000.0,0.00024658,2]
[385910644,1758131465448,-1000.0,0.00024658,2]
[385910645,1758131465458,-1000.0,0.00024658,2]
[385910646,1758131465469,-1000.0,0.00024658,2]
[385910647,1758131465479,-1000.0,0.00024658,2]
[385910648,1758131465489,-1000.0,0.00024658,2]
[385910649,1758131465498,-1000.0,0.00024658,2]
[385910650,1758131465509,-151.0,0.00024658,7]
[385910651,1758131465521,-1000.0,0.00024658,2]
[385910652,1758131465535,-1000.0,0.00024658,2]
[385910653,1758131465545,-1000.0,0.00024658,2]
[385910654,1758131465555,-1000.0,0.00024658,2]
[385910655,1758131465565,-1000.0,0.00024658,2]
[385910656,1758131465576,-151.0,0.00024658,7]
[385910657,1758131465586,-151.0,0.00024658,7]
[385910658,1758131465596,-1000.0,0.00024658,2]
[385910659,1758131465606,-1000.0,0.00024658,2]
[385910660,1758131465616,-151.0,0.00024658,7]
[385910661,1758131465625,-151.0,0.00024658,7]
[385910662,1758131465635,-151.0,0.00024658,7]
[385910663,1758131465644,-201.453293,0.00024658,7]
[385910664,1758131465654,-151.0,0.00024658,7]
[385910665,1758131465664,-151.0,0.00024658,7]
[385910666,1758131465674,-151.0,0.00024658,7]
[385910667,1758131465684,-151.0,0.00024658,7]
[385910668,1758131465694,-151.0,0.00024658,7]
[385910669,1758131465703,-154.632167,0.00024658,7]
[385910670,1758131465713,-151.0,0.00024658,7]
[385910671,1758131465723,-1000.0,0.00024658,2]
[385910672,1758131465733,-1000.0,0.00024658,2]
[385910673,1758131465743,-1000.0,0.00024658,2]
[385910674,1758131465753,-1000.0,0.00024658,2]
[385910675,1758131465764,-1000.0,0.00024658,2]
[385910676,1758131465777,-1000.0,0.00024658,2]
[385910677,1758131465786,-151.0,0.00024658,7]
[385910678,1758131465797,-1000.0,0.00024658,2]
[385910679,1758131465806,-151.0,0.00024658,7]
[385910680,1758131465816,-1000.0,0.00024658,2]
[385910681,1758131465826,-151.0,0.00024658,7]
[385910682,1758131465836,-1000.0,0.00024658,2]
[385910683,1758131465846,-1000.0,0.00024658,2]
[385910684,1758131465855,-151.0,0.00024658,7]
[385910685,1758131465865,-270.598768,0.00024658,7]
[385910686,1758131465875,-1000.0,0.00024658,2]
[385910687,1758131465885,-1000.0,0.00024658,2]
[385910688,1758131465894,-273.991423,0.00024658,7]
[385910689,1758131465904,-1000.0,0.00024658,2]
[385910690,1758131465914,-1000.0,0.00024658,2]
[385910691,1758131465925,-1000.0,0.00024658,2]
[385910692,1758131465936,-1000.0,0.00024658,2]
[385910693,1758131465946,-151.0,0.00024658,7]
[385910694,1758131465955,-1000.0,0.00024658,2]
[385910695,1758131465964,-1000.0,0.00024658,2]
[385910696,1758131465974,-1000.0,0.00024658,2]
[385910697,1758131465984,-1000.0,0.00024658,2]
[385910698,1758131465994,-1000.0,0.00024658,2]
[385910699,1758131466005,-1000.0,0.00024658,2]
[385910700,1758131466015,-1000.0,0.00024658,2]
[385910701,1758131466028,-238.0,0.00024658,2]
[385910702,1758131466038,-500.0,0.00024658,2]
[385910703,1758131466048,-7162.692994,0.0002467,2]
[385910704,1758131466058,-150.58,0.00024696,2]
[385910705,1758131466070,-410.13,0.00024696,2]
[385910706,1758131466080,-150.0,0.00024696,2]
[385910707,1758131466090,-411.23,0.00024696,2]
[385910708,1758131466100,-334.36,0.00024696,2]
[385910709,1758131466110,-543.25,0.00024696,2]
[385910710,1758131466120,-500.0,0.00024699,2]
[385910711,1758131466130,-500.0,0.00024699,2]
[385910712,1758131466140,-10060.95348659,0.000247,2]
[385910713,1758131466150,-200.0,0.000247,2]
[385910714,1758131466159,-200.0,0.000247,2]
[385910715,1758131466169,-200.0,0.000247,2]
[385910716,1758131466178,-195.78603493,0.000247,2]
[385910717,1758131466188,-152.0,0.000247,2]
[385910718,1758131466198,-152.0,0.000247,2]
[385910719,1758131466208,-152.0,0.000247,2]
[385910720,1758131466218,-152.0,0.000247,2]
[385910721,1758131466229,-152.0,0.000247,2]
[385910722,1758131466239,-298.10975696,0.000247,2]
[385910723,1758131466248,-152.0,0.000247,2]
[385910724,1758131466258,-152.0,0.000247,2]
[385910725,1758131466268,-152.0,0.000247,2]
[385910726,1758131466282,-152.0,0.000247,2]
[385910727,1758131466292,-152.0,0.000247,2]
[385910728,1758131466302,-152.0,0.000247,2]
[385910729,1758131466312,-152.0,0.000247,2]
[385910730,1758131466322,-152.0,0.000247,2]
[385910731,1758131466332,-1227.0,0.000247,2]
[385910732,1758131466342,-1227.0,0.000247,2]
[385910733,1758131466353,-1227.0,0.000247,2]
[385910734,1758131466362,-151.0,0.000247,2]
[385910735,1758131466372,-1227.0,0.000247,2]
[385910736,1758131466383,-151.0,0.000247,2]
[385910737,1758131466393,-1227.0,0.000247,2]
[385910738,1758131466403,-151.0,0.000247,2]
[385910739,1758131466414,-1227.0,0.000247,2]
[385910740,1758131466424,-151.0,0.000247,2]
[385910741,1758131466434,-1227.0,0.000247,2]
[385910742,1758131466444,-548.0,0.000247,2]
[385910743,1758131466455,-151.0,0.000247,2]
[385910744,1758131466465,-536.0,0.000247,2]
[385910745,1758131466684,-1202.0,0.000247,2]
[385910746,1758131466696,-151.0,0.000247,2]
[385910747,1758131466706,-151.0,0.000247,2]
[385910748,1758131466715,-173.41682162,0.000247,2]
[385910749,1758131466725,-1227.0,0.000247,2]
[385910750,1758131466734,-151.0,0.000247,2]
[385910751,1758131466744,-151.0,0.000247,2]
[385910752,1758131466754,-151.0,0.000247,2]
[385910753,1758131466764,-1227.0,0.000247,2]
[385910754,1758131466774,-1227.0,0.000247,2]
[385910755,1758131466783,-1227.0,0.000247,2]
[385910756,1758131466792,-151.0,0.000247,2]
[385910757,1758131466802,-1227.0,0.000247,2]
[385910758,1758131466811,-151.0,0.000247,2]
[385910759,1758131466822,-151.0,0.000247,2]
[385910760,1758131466831,-151.0,0.000247,2]
[385910761,1758131466842,-151.0,0.000247,2]
[385910762,1758131466851,-152.0,0.000247,2]
[385910763,1758131466861,-152.0,0.000247,2]
[385910764,1758131466871,-151.0,0.000247,2]
[385910765,1758131466880,-151.0,0.000247,2]
[385910766,1758131466890,-151.0,0.000247,2]
[385910767,1758131466899,-548.0,0.000247,2]
[385910768,1758131466909,-1227.0,0.000247,2]
[385910769,1758131466919,-1227.0,0.000247,2]
[385910770,1758131466933,-548.0,0.000247,2]
[385910771,1758131466943,-1227.0,0.000247,2]
[385910772,1758131466953,-1227.0,0.000247,2]
[385910773,1758131466964,-548.0,0.000247,2]
[385910774,1758131466974,-548.0,0.000247,2]
[385910775,1758131466983,-1227.0,0.000247,2]
[385910776,1758131466993,-548.0,0.000247,2]
[385910777,1758131467002,-1227.0,0.000247,2]
[385910778,1758131467012,-548.0,0.000247,2]
[385910779,1758131467023,-1227.0,0.000247,2]
[385910780,1758131467033,-548.0,0.000247,2]
[385910781,1758131467042,-1227.0,0.000247,2]
[385910782,1758131467054,-548.0,0.000247,2]
[385910783,1758131467066,-1227.0,0.000247,2]
[385910784,1758131467079,-548.0,0.000247,2]
[385910785,1758131467091,-1227.0,0.000247,2]
[385910786,1758131467100,-1227.0,0.000247,2]
[385910787,1758131467109,-1227.0,0.000247,2]
[385910788,1758131467119,-548.0,0.000247,2]
[385910789,1758131467128,-1000.0,0.0002474,2]
[385910790,1758131467138,-161.56702766,0.00024751,2]
[385910791,1758131467147,-7828.81343447,0.00024752,2]
[385910792,1758131467157,-153.14,0.00024754,2]
[385910793,1758131467167,-7162.692994,0.00024791,2]
[385910794,1758131467178,-500.0,0.00024799,2]
[385910795,1758131467188,-1000.0,0.000248,2]
[385910796,1758131467198,-5700.0,0.000248,9]
[385910797,1758131467207,-299143.40949,0.000248,2]
[385910798,1758131467217,-770.1209081,0.00024817,2]
[385910799,1758131467226,-724.52,0.0002483,2]
[385910800,1758131467235,-5832.22349714,0.00024831,2]
[385910801,1758131467245,-215.95060602,0.00024831,4]
[385910802,1758131467255,-400.0,0.00024838,2]
[385910803,1758131467264,-404.3475833,0.00024838,2]
[385910804,1758131467276,-421.42702715,0.00024838,2]
[385910805,1758131467286,-400.0,0.00024838,2]
[385910806,1758131467296,-489.37,0.00024838,2]
[385910807,1758131467305,-182.056991,0.00024838,2]
[385910808,1758131467315,-289.243169,0.00024838,2]
[385910809,1758131467325,-198.362773,0.00024838,2]
[385910810,1758131467335,-584.85,0.00024838,2]
[385910811,1758131467343,-400.0,0.00024838,2]
[385910812,1758131467353,-569.4,0.00024838,2]
[385910813,1758131467363,-2444.1,0.00024838,2]
[385910814,1758131467372,-400.0,0.00024838,2]
[385910815,1758131467381,-571.13,0.00024838,2]
[385910816,1758131467391,-574.63,0.00024838,2]
[385910817,1758131467401,-453.12,0.00024838,2]
[385910818,1758131467410,-696.41,0.00024838,2]
[385910819,1758131467419,-1567.04,0.00024838,2]
[385910820,1758131467428,-908.05,0.00024838,2]
[385910821,1758131467438,-486.03,0.00024838,2]
[385910822,1758131467448,-611.17,0.00024838,2]
[385910823,1758131467457,-487.0,0.00024838,2]
[385910824,1758131467467,-1065.47,0.00024838,2]
[385910825,1758131467476,-400.0,0.00024838,2]
[385910826,1758131467485,-751.64,0.00024838,2]
[385910827,1758131467494,-14812.96,0.00024838,2]
[385910828,1758131467503,-995.91,0.00024838,2]
[385910829,1758131467513,-923.1,0.00024838,2]
[385910830,1758131467524,-403.2,0.00024838,2]
[385910831,1758131467534,-699.46,0.00024838,2]
[385910832,1758131467545,-2176.27,0.00024838,2]
[385910833,1758131467554,-1126.89,0.00024838,2]
[385910834,1758131467563,-2761.17,0.00024838,2]
[385910835,1758131467573,-400.0,0.00024838,2]
[385910836,1758131467582,-4624.33,0.00024838,2]
[385910837,1758131467592,-1077.38,0.00024838,2]
[385910838,1758131467602,-810.57,0.00024838,2]
[385910839,1758131467611,-400.0,0.00024838,2]
[385910840,1758131467621,-2677.29,0.00024838,2]
[385910841,1758131467631,-2715.75,0.00024838,2]
[385910842,1758131467641,-1131.67,0.00024838,2]
[385910843,1758131467651,-633.79,0.00024838,2]
[385910844,1758131467662,-623.43,0.00024838,2]
[385910845,1758131467672,-3560.1,0.00024838,2]
[385910846,1758131467682,-400.0,0.00024838,2]
[385910847,1758131467692,-400.0,0.00024838,2]
[385910848,1758131467701,-484.81,0.00024838,2]
[385910849,1758131467711,-1076.33,0.00024838,2]
[385910850,1758131467720,-400.0,0.00024838,2]
[385910851,1758131467730,-1315.56,0.00024838,2]
[385910852,1758131467739,-426.46,0.00024838,2]
[385910853,1758131467749,-2358.0,0.00024838,2]
[385910854,1758131467758,-2404.84,0.00024838,2]
[385910855,1758131467768,-4070.35,0.00024838,2]
[385910856,1758131467780,-420.78770141,0.00024839,2]
[385910857,1758131467789,-400.0,0.00024839,2]
[385910858,1758131467799,-400.0,0.00024839,2]
[385910859,1758131467809,-400.0,0.00024839,2]
[385910860,1758131467818,-400.0,0.00024839,2]
[385910861,1758131467828,-400.0,0.00024839,2]
[385910862,1758131467838,-400.0,0.00024839,2]
[385910863,1758131467847,-412.4,0.00024839,2]
[385910864,1758131467857,-400.0,0.00024839,2]
[385910865,1758131467866,-400.0,0.00024839,2]
[385910866,1758131467876,-400.0,0.00024839,2]
[385910867,1758131467886,-400.0,0.00024839,2]
[385910868,1758131467895,-400.0,0.00024839,2]
[385910869,1758131467905,-400.0,0.00024839,2]
[385910870,1758131467915,-525.95,0.00024839,2]
[385910871,1758131467924,-400.0,0.00024839,2]
[385910872,1758131467937,-400.0,0.00024839,2]
[385910873,1758131467946,-400.0,0.00024839,2]
[385910874,1758131467955,-400.0,0.00024839,2]
[385910875,1758131467964,-400.0,0.00024839,2]
[385910876,1758131467973,-400.0,0.00024839,2]
[385910877,1758131467983,-402.39834083,0.00024839,2]
[385910878,1758131467993,-500.0,0.00024839,14]
[385910879,1758131468002,-400.0,0.00024839,2]
[385910880,1758131468011,-401.85386158,0.00024839,2]
[385910881,1758131468021,-403.70922473,0.00024839,2]
[385910882,1758131468032,-400.0,0.00024839,2]
[385910883,1758131468041,-400.0,0.00024839,2]
[385910884,1758131468051,-400.0,0.00024839,2]
[385910885,1758131468061,-303.68116554,0.00024839,2]
[385910886,1758131468071,-400.0,0.00024839,2]
[385910887,1758131468080,-417.0575319,0.00024839,2]
[385910888,1758131468090,-400.0,0.00024839,2]
[385910889,1758131468100,-500.0,0.00024839,2]
[385910890,1758131468109,-400.0,0.00024839,2]
[385910891,1758131468119,-354.1615915,0.00024839,2]
[385910892,1758131468128,-400.0,0.00024839,2]
[385910893,1758131468138,-400.0,0.00024839,2]
[385910894,1758131468147,-400.0,0.00024839,2]
[385910895,1758131468157,-400.0,0.00024839,2]
[385910896,1758131468166,-400.0,0.00024839,2]
[385910897,1758131468175,-400.0,0.00024839,2]
[385910898,1758131468185,-400.0,0.00024839,2]
[385910899,1758131468194,-181.98881905,0.00024839,2]
[385910900,1758131468203,-400.0,0.00024839,2]
[385910901,1758131468213,-400.0,0.00024839,2]
[385910902,1758131468222,-400.0,0.00024839,2]
[385910903,1758131468232,-400.0,0.00024839,2]
[385910904,1758131468241,-408.83286889,0.00024839,2]
[385910905,1758131468251,-400.0,0.00024839,2]
[385910906,1758131468261,-400.0,0.00024839,2]
[385910907,1758131468272,-403.91188752,0.00024839,2]
[385910908,1758131468282,-400.0,0.00024839,2]
[385910909,1758131468291,-400.0,0.00024839,2]
[385910910,1758131468301,-500.0,0.00024839,2]
[385910911,1758131468311,-400.0,0.00024839,2]
[385910912,1758131468320,-412.42749876,0.00024839,2]
[385910913,1758131468329,-400.0,0.00024839,2]
[385910914,1758131468339,-400.0,0.00024839,2]
[385910915,1758131468349,-150.39346654,0.00024839,2]
[385910916,1758131468358,-400.0,0.00024839,2]
[385910917,1758131468368,-430.36,0.00024839,2]
[385910918,1758131468377,-588.81,0.00024839,2]
[385910919,1758131468387,-400.0,0.00024839,2]
[385910920,1758131468396,-400.0,0.00024839,2]
[385910921,1758131468405,-400.0,0.00024839,2]
[385910922,1758131468415,-771.14,0.00024839,2]
[385910923,1758131468425,-400.0,0.00024839,2]
[385910924,1758131468434,-500.0,0.00024839,2]
[385910925,1758131468443,-400.0,0.00024839,2]
[385910926,1758131468453,-400.0,0.00024839,2]
[385910927,1758131468463,-400.0,0.00024839,2]
[385910928,1758131468473,-400.0,0.00024839,2]
[385910929,1758131468482,-507.30401932,0.00024839,2]
[385910930,1758131468491,-400.0,0.00024839,2]
[385910931,1758131468501,-400.0,0.00024839,2]
[385910932,1758131468512,-400.0,0.00024839,2]
[385910933,1758131468525,-300.0,0.00024839,10]
[385910934,1758131468534,-300.0,0.00024839,10]
[385910935,1758131468548,-300.0,0.00024839,10]
[385910936,1758131468560,-943.34,0.0002484,2]
[385910937,1758131468569,-4018.49,0.0002484,2]
[385910938,1758131468579,-701.65,0.0002484,2]
[385910939,1758131468588,-1891.23,0.0002484,2]
[385910940,1758131468597,-454.82500023,0.00024841,2]
[385910941,1758131468607,-467.94224219,0.00024841,2]
[385910942,1758131468616,-1576.0,0.00024842,2]
[385910943,1758131468627,-500.0,0.00024847,2]
[385910944,1758131468636,-159.59120225,0.00024847,2]
[385910945,1758131468646,-500.0,0.00024847,2]
[385910946,1758131468655,-150.0,0.00024847,2]
[385910947,1758131468665,-452.25054493,0.00024847,2]
[385910948,1758131468674,-500.0,0.00024847,2]
[385910949,1758131468684,-500.0,0.00024847,2]
[385910950,1758131468693,-565.0,0.00024847,2]
[385910951,1758131468702,-500.0,0.00024847,2]
[385910952,1758131468712,-3122.0,0.00024847,2]
[385910953,1758131468721,-155.38016389,0.00024847,2]
[385910954,1758131468730,-487.0,0.00024847,2]
[385910955,1758131468739,-500.0,0.00024847,2]
[385910956,1758131468749,-200.0,0.00024847,2]
[385910957,1758131468758,-607.29135678,0.00024847,2]
[385910958,1758131468769,-170.17,0.00024847,2]
[385910959,1758131468778,-500.0,0.00024847,2]
[385910960,1758131468788,-150.0,0.00024847,2]
[385910961,1758131468797,-602.0811766,0.00024847,2]
[385910962,1758131468807,-216.65781096,0.00024847,2]
[385910963,1758131468816,-1362.35127607,0.00024848,10]
[385910964,1758131468826,-500.0,0.00024848,2]
[385910965,1758131468836,-2406.73,0.00024848,2]
[385910966,1758131468845,-500.0,0.00024848,2]
[385910967,1758131468855,-485.56350358,0.00024848,2]
[385910968,1758131468864,-500.0,0.00024848,2]
[385910969,1758131468874,-500.0,0.00024848,2]
[385910970,1758131468884,-150.0,0.00024848,2]
[385910971,1758131468893,-500.0,0.00024848,2]
[385910972,1758131468903,-500.0,0.00024848,2]
[385910973,1758131468912,-500.0,0.00024848,2]
[385910974,1758131468922,-400.0,0.00024848,2]
[385910975,1758131468937,-4624.33,0.00024848,2]
[385910976,1758131468947,-500.0,0.00024848,2]
[385910977,1758131468957,-293.45610032,0.00024848,2]
[385910978,1758131468967,-512.56008371,0.00024849,2]
[385910979,1758131468979,-300.0,0.00024849,10]
[385910980,1758131469058,-300.0,0.00024849,10]
[385910981,1758131469068,-155.0,0.00024849,2]
[385910982,1758131469077,-152.159124,0.00024849,2]
[385910983,1758131469086,-500.0,0.00024849,2]
[385910984,1758131469095,-2406.73,0.00024849,2]
[385910985,1758131469106,-500.0,0.00024849,2]
[385910986,1758131469115,-1235.05,0.00024849,2]
[385910987,1758131469124,-567.49,0.00024849,2]
[385910988,1758131469134,-500.0,0.00024849,2]
[385910989,1758131469143,-500.0,0.00024849,2]
[385910990,1758131469152,-400.0,0.00024849,2]
[385910991,1758131469161,-1147.59,0.00024849,2]
[385910992,1758131469170,-474.51,0.00024849,2]
[385910993,1758131469179,-400.0,0.00024849,2]
[385910994,1758131469189,-1412.24,0.00024849,2]
[385910995,1758131469199,-706.63,0.00024849,2]
[385910996,1758131469208,-2417.66,0.00024849,2]
[385910997,1758131469217,-524.13,0.00024849,2]
[385910998,1758131469227,-500.0,0.00024849,2]
[385910999,1758131469236,-573.54,0.00024849,2]
[385911000,1758131469245,-505.81794161,0.00024849,2]
[385911001,1758131469255,-948.73,0.00024849,2]
[385911002,1758131469264,-2346.09,0.00024849,2]
[385911003,1758131469274,-4760.55,0.00024849,2]
[385911004,1758131469283,-508.83434971,0.00024849,2]
[385911005,1758131469293,-500.0,0.00024849,2]
[385911006,1758131469302,-400.0,0.00024849,2]
[385911007,1758131469312,-666.56,0.00024849,2]
[385911008,1758131469321,-500.0,0.00024849,2]
[385911009,1758131469330,-500.0,0.00024849,2]
[385911010,1758131469339,-1032.93,0.00024849,2]
[385911011,1758131469349,-821.53,0.00024849,2]
[385911012,1758131469358,-967.11,0.00024849,2]
[385911013,1758131469368,-1252.99,0.00024849,2]
[385911014,1758131469377,-4624.33,0.00024849,2]
[385911015,1758131469386,-704.15,0.00024849,2]
[385911016,1758131469395,-400.0,0.00024849,2]
[385911017,1758131469405,-649.13,0.00024849,2]
[385911018,1758131469415,-620.07,0.00024849,2]
[385911019,1758131469424,-500.0,0.00024849,2]
[385911020,1758131469434,-4154.54,0.00024849,2]
[385911021,1758131469443,-715.62,0.00024849,2]
[385911022,1758131469452,-400.0,0.00024849,2]
[385911023,1758131469461,-532.67,0.00024849,2]
[385911024,1758131469471,-500.0,0.00024849,2]
[385911025,1758131469480,-150.0,0.00024849,4]
[385911026,1758131469490,-150.0,0.00024849,4]
[385911027,1758131469499,-150.0,0.00024849,4]
[385911028,1758131469508,-150.0,0.00024849,4]
[385911029,1758131469517,-150.0,0.00024849,4]
[385911030,1758131469527,-150.0,0.00024849,4]
[385911031,1758131469536,-150.0,0.00024849,4]
[385911032,1758131469546,-150.0,0.00024849,4]
[385911033,1758131469555,-150.0,0.00024849,4]
[385911034,1758131469564,-150.0,0.00024849,4]
[385911035,1758131469573,-400.0,0.0002485,2]
[385911036,1758131469582,-400.0,0.0002485,2]
[385911037,1758131469591,-400.0,0.0002485,2]
[385911038,1758131469601,-400.0,0.0002485,2]
[385911039,1758131469610,-400.0,0.0002485,2]
[385911040,1758131469620,-406.50205341,0.0002485,2]
[385911041,1758131469629,-400.0,0.0002485,2]
[385911042,1758131469639,-401.53511403,0.0002485,2]
[385911043,1758131469648,-400.0,0.0002485,2]
[385911044,1758131469657,-400.0,0.0002485,2]
[385911045,1758131469667,-400.0,0.0002485,2]
[385911046,1758131469676,-400.0,0.0002485,2]
[385911047,1758131469686,-294.6117519,0.0002485,2]
[385911048,1758131469695,-404.08925276,0.0002485,2]
[385911049,1758131469704,-403.9872899,0.0002485,2]
[385911050,1758131469713,-400.0,0.0002485,2]
[385911051,1758131469723,-400.0,0.0002485,2]
[385911052,1758131469732,-400.0,0.0002485,2]
[385911053,1758131469742,-400.0,0.0002485,2]
[385911054,1758131469751,-400.0,0.0002485,2]
[385911055,1758131469760,-400.0,0.0002485,2]
[385911056,1758131469769,-400.0,0.0002485,2]
[385911057,1758131469780,-400.0,0.0002485,2]
[385911058,1758131469789,-401.12179279,0.0002485,2]
[385911059,1758131469798,-400.0,0.0002485,2]
[385911060,1758131469808,-400.0,0.0002485,2]
[385911061,1758131469817,-400.0,0.0002485,2]
[385911062,1758131469826,-424.79646518,0.0002485,2]
[385911063,1758131469836,-401.03659978,0.0002485,2]
[385911064,1758131469846,-400.0,0.0002485,2]
[385911065,1758131469855,-400.0,0.0002485,2]
[385911066,1758131469864,-400.0,0.0002485,2]
[385911067,1758131469874,-400.0,0.0002485,2]
[385911068,1758131469884,-400.0,0.0002485,2]
[385911069,1758131469893,-400.0,0.0002485,2]
[385911070,1758131469902,-405.26760294,0.0002485,2]
[385911071,1758131469911,-400.0,0.0002485,2]
[385911072,1758131469921,-400.0,0.0002485,2]
[385911073,1758131469934,-400.0,0.0002485,2]
[385911074,1758131469943,-400.0,0.0002485,2]
[385911075,1758131469952,-402.24068495,0.0002485,2]
[385911076,1758131469961,-400.0,0.0002485,2]
[385911077,1758131469971,-400.0,0.0002485,2]
[385911078,1758131469980,-400.0,0.0002485,2]
[385911079,1758131469990,-400.0,0.0002485,2]
[385911080,1758131469999,-400.0,0.0002485,2]
[385911081,1758131470008,-404.59795621,0.0002485,2]
[385911082,1758131470018,-400.0,0.0002485,2]
[385911083,1758131470028,-407.78847937,0.0002485,2]
[385911084,1758131470038,-400.0,0.0002485,2]
[385911085,1758131470046,-400.0,0.0002485,2]
[385911086,1758131470056,-610.56,0.0002485,2]
[385911087,1758131470065,-400.0,0.0002485,2]
[385911088,1758131470074,-400.0,0.0002485,2]
[385911089,1758131470084,-400.0,0.0002485,2]
[385911090,1758131470093,-400.0,0.0002485,2]
[385911091,1758131470102,-536.68,0.0002485,2]
[385911092,1758131470111,-400.0,0.0002485,2]
[385911093,1758131470120,-953.64,0.0002485,2]
[385911094,1758131470130,-400.0,0.0002485,2]
[385911095,1758131470139,-653.84,0.0002485,2]
[385911096,1758131470148,-432.74,0.0002485,2]
[385911097,1758131470156,-400.0,0.0002485,2]
[385911098,1758131470165,-425.92686183,0.0002485,2]
[385911099,1758131470174,-631.73,0.0002485,2]
[385911100,1758131470183,-1268.84,0.0002485,2]
[385911101,1758131470194,-400.0,0.0002485,2]
[385911102,1758131470204,-400.0,0.0002485,2]
[385911103,1758131470213,-426.24,0.0002485,2]
[385911104,1758131470223,-540.01,0.0002485,2]